Cogmind - Beta 13 @@@ ROGUE MODE // 2024.07.15 @ 19:16:49 Player: APerTAS Result: Destroyed by 6G-TZ5(R) with Subdweller Laser Performance ------------- Evolutions (0) 0 Regions Visited (2) 400 Robots Destroyed (14) 70 Value Destroyed (398) 398 Prototype IDs (0) 0 Alien Tech Used (0) 0 Bonus (0) 0 TOTAL SCORE: 868 Bonus ------- None Cogmind --------- Core Integrity 0/250 Matter 204/300 Energy 198/200 System Corruption 0% Temperature Cool (6) Movement Rolling (110) Location -10/Subcaves Parts ------- > --- POWER (1) -------- Subdweller Power Source > --- PROPULSION (2) --- Subdweller Monowheel Subdweller Monowheel > --- UTILITY (2) ------ Large Storage Unit Subdweller Optics > --- WEAPON (2) ------- Subdweller Machine Gun Subdweller Machine Gun > --- INVENTORY (15) --- Light Ion Engine Subdweller Power Source Subdweller Power Source Wheel Compact Wheel Improved Heat Sink High-capacity Matter Pod (89) Seismic Detector Tractor Beam Medium Laser Medium Laser Assault Rifle Subdweller Machine Gun Battle Cannon Peak State ------------ > --- POWER ------------ Subdweller Power Source > --- PROPULSION ------- Subdweller Monowheel Subdweller Monowheel > --- UTILITY ---------- Large Storage Unit Subdweller Optics > --- WEAPON ----------- Subdweller Machine Gun Subdweller Machine Gun > --- INVENTORY -------- Light Ion Engine Subdweller Power Source Subdweller Power Source Wheel Compact Wheel Improved Heat Sink High-capacity Matter Pod Seismic Detector Tractor Beam Medium Laser Medium Laser Assault Rifle Subdweller Machine Gun Battle Cannon [Rating: 15] Favorites ----------- Power Light Ion Engine Engine Light Ion Engine Propulsion Light Treads Treads Light Treads Wheel Subdweller Monowheel Utility Large Storage Unit Device Seismic Detector Storage Large Storage Unit Protection Light Armor Plating Weapon Assault Rifle Energy Gun Medium Laser Ballistic Gun Assault Rifle Launcher Grenade Launcher Build | -11 -10 -10 ------- Run | Yrd Mat Sub Slots Evolved . | . . . Power . | . . . Propulsion . | . . . Utility . | . . . Weapon . | . . . Parts Attached 23 | 6 4 13 Power 4 | 1 . 3 Engine 4 | 1 . 3 Core . | . . . Reactor . | . . . Propulsion 7 | 2 . 5 Treads 2 | 2 . . Leg . | . . . Wheel 5 | . . 5 Hover . | . . . Flight . | . . . Utility 6 | 1 3 2 Device 3 | . 2 1 Storage 2 | 1 1 . Processor . | . . . Hackware . | . . . Protection 1 | . . 1 Artifact . | . . . Weapon 6 | 2 1 3 Energy Gun 2 | 1 . 1 Energy Cannon . | . . . Ballistic Gun 3 | 1 . 2 Ballistic Cannon . | . . . Launcher 1 | . 1 . Special Weapon . | . . . Impact Weapon . | . . . Slashing Weapon . | . . . Piercing Weapon . | . . . Special Melee Weapon . | . . . Unidentified Prototypes . | . . . Parts Lost 4 | . . 4 Power . | . . . Propulsion 1 | . . 1 Utility 2 | . . 2 Weapon 1 | . . 1 Highest Loss Streak 2 | . . 2 To Critical Strikes . | . . . Average Slot Usage (%) 94 | . 96 93 Engine 14 | . 14 14 Treads 25 | . 28 23 Wheel 2 | . . 3 Device 5 | . 10 3 Storage 14 | . 14 14 Protection 6 | . . 9 Energy Gun 2 | . . 3 Ballistic Gun 14 | . 14 15 Launcher 7 | . 13 4 Naked Turns . | . . . Heaviest Build 35 | 12 29 35 Greatest Support 40 | 40 40 40 Greatest Overweight (x) 1 | . . 1 Average Overweight (x) . | . . . Largest Inventory Capacity 15 | 8 15 15 Average Capacity 13 | 6 10 15 Most Carried 14 | 4 10 14 Average Carried 9 | 2 6 11 Final Capacity 15 | 8 15 15 Final Carried 14 | 4 10 14 Class Distribution -------------------- 95% | Mutant 4% | Scavenger-Mutant Dominant Class ---------------- Mutant | -10/Materials Mutant | -10/Subcaves Resources | -11 -10 -10 ----------- Run | Yrd Mat Sub Matter Collected 570 | 249 . 321 Remotely . | . . . Salvage Created 403 | . 176 227 Parts 32 | . 18 14 Haulers Intercepted . | . . . Recyclers Shooed . | . . . Parts Field Recycled . | . . . Retrieved Matter . | . . . Parts Self-Destructed 2 | . . 2 Prevented . | . . . Kills | -11 -10 -10 ------- Run | Yrd Mat Sub Combat Hostiles Destroyed 11 | . 5 6 Guns 5 | . 1 4 AOE 6 | . 4 2 Classes Destroyed 6 | . 5 1 Builder 1 | . 1 . Recycler 1 | . 1 . Watcher 1 | . 1 . Swarmer 3 | . 3 . Grunt 2 | . 2 . Subdweller 6 | . . 6 Best Kill Streak 8 | . 8 2 Combat Bots Only 5 | . 5 2 Max Kills in Single Turn 3 | . 3 1 Gunslinging . | . . . Exploded 2 | . 2 1 Melee . | . . . Uniques/NPCs Destroyed . | . . . Combat | -11 -10 -10 -------- Run | Yrd Mat Sub Hostile Shots Fired 54 | . 13 41 Missed 13 | . 4 9 Damage Taken 962 | . 223 739 Core 252 | . 136 116 Absorbed by Shields . | . . . Core Remaining (%) 100 | 100 . . Volleys Fired 30 | . 4 26 Largest 2 | . 2 2 Hottest 80 | . 50 80 Shots Fired 57 | . 7 50 Gun 49 | . 4 45 Cannon . | . . . Launcher 8 | . 3 5 Special . | . . . Kinetic 34 | . 4 30 Thermal 15 | . . 15 Explosive 8 | . 3 5 Electromagnetic . | . . . Robot Hit Streak 13 | . 1 13 Robot Miss Streak 2 | . 1 2 Penetration Max . | . . . Secondary Targets 2 | . . 2 Max Gunslinging Chain 1 | . . 1 Shots Hit Robots 39 | . 3 36 Core Hits 25 | . 11 14 Critical Kills . | . . . Critical Parts Destroyed . | . . . Critical Strikes . | . . . Melee Attacks . | . . . Impact . | . . . Slashing . | . . . Piercing . | . . . Sneak Attacks . | . . . Combat Hostiles . | . . . Follow-up Attacks . | . . . Damage Inflicted 1316 | . 606 710 Guns 490 | . 14 476 Cannons . | . . . Explosions 826 | . 592 234 Melee . | . . . Ramming . | . . . Kinetic 353 | . 14 339 Thermal 480 | . 343 137 Explosive 483 | . 249 234 Electromagnetic . | . . . Impact . | . . . Slashing . | . . . Piercing . | . . . Highest Corruption . | . . . Average Corruption . | . . . Corruption Purged . | . . . Corruption Blocked . | . . . Overload Shots . | . . . Overflow Damage 106 | . 89 17 Projectiles . | . . . Explosions 106 | . 89 17 Melee . | . . . Knockbacks . | . . . Impact . | . . . Kinetic . | . . . Secondary . | . . . Self-Inflicted Damage 182 | . 125 57 Shots 5 | . 2 3 Rammed . | . . . Targets Rammed . | . . . Kicked . | . . . Crushed . | . . . Highest Temperature 12 | . 12 . Average Temperature 6 | . 6 . Received Heat Transfer 108 | . 24 84 Siege Activations . | . . . Robots Corrupted . | . . . Combat Hostiles . | . . . Parts Fried . | . . . Impact Corruptions . | . . . Robots Melted . | . . . Combat Hostiles . | . . . Parts Melted . | . . . Heat Transferred 707 | . 300 407 Parts Sabotaged . | . . . Parts Stolen . | . . . Parts Stripped . | . . . Power Chain Reactions . | . . . Alert | -11 -10 -10 ------- Run | Yrd Mat Sub Peak Influence 248 | . 248 . Initial . | . . . Average 22 | . 29 . Maximum Alert Level 1 | . 1 . Low Security (%) 96 | 100 95 . Level 1 3 | . 4 . Level 2 . | . . . Level 3 . | . . . Level 4 . | . . . Level 5 . | . . . High Security . | . . . Max Security . | . . . Squads Dispatched 1 | . 1 . Investigation . | . . . Extermination . | . . . Reinforcement 1 | . 1 . Assault . | . . . Garrison . | . . . Intercept . | . . . Searches Triggered . | . . . Construction Impeded . | . . . Haulers Reinforced . | . . . Active Scanning Responses . | . . . Cargo Convoy Interrupts . | . . . Stealth | -11 -10 -10 --------- Run | Yrd Mat Sub Distress Signals . | . . . Communications Jammed . | . . . Distress Signals . | . . . Times Spotted 14 | . 7 7 Peak Tracking Total 5 | . 5 2 Tactical Retreats . | . . . Traps | -11 -10 -10 ------- Run | Yrd Mat Sub Traps Triggered . | . . . Indirectly . | . . . Trap Hack Attempts . | . . . Triggered . | . . . Disarmed 4 | . 4 . Reprogrammed . | . . . Reused . | . . . Traps Extracted . | . . . Installed . | . . . Triggered . | . . . Machines | -11 -10 -10 ---------- Run | Yrd Mat Sub Machines Disabled 2 | . 2 . Max in Single Turn 2 | . 2 . Machines Repaired . | . . . Machines Dismantled . | . . . Machines Sabotaged . | . . . Overloaded Fab Kills . | . . . Hacking | -11 -10 -10 --------- Run | Yrd Mat Sub Machines Accessed 1 | . 1 . Terminals 1 | . 1 . Fabricators . | . . . Repair Stations . | . . . Recycling Units . | . . . Scanalyzers . | . . . Garrison Access . | . . . Total Hacks 3 | . 3 . Successful 2 | . 2 . Failed 1 | . 1 . Catastrophic . | . . . Database Lockouts . | . . . Manual 2 | . 2 . Terminals 3 | . 3 . Fabricators . | . . . Repair Stations . | . . . Recycling Units . | . . . Scanalyzers . | . . . Garrison Access . | . . . Terminal Hacks 2 | . 2 . Locate Traps 1 | . 1 . Disarm Traps 1 | . 1 . Fabricator Hacks . | . . . Repair Station Hacks . | . . . Recycling Unit Hacks . | . . . Scanalyzer . | . . . Garrison Access Hacks . | . . . Unauthorized Hacks . | . . . Terminals . | . . . Fabricators . | . . . Repair Stations . | . . . Recycling Units . | . . . Scanalyzers . | . . . Garrison Access . | . . . Data Cores Recovered . | . . . Used . | . . . Hacking Detections 1 | . 1 . Full Trace Events . | . . . Feedback Events . | . . . Feedback Blocked . | . . . Robot Schematics Acquired . | . . . Robots Built . | . . . Authchips . | . . . Time . | . . . Total Robot Build Rating . | . . . Part Schematics Acquired . | . . . Parts Built . | . . . Authchips . | . . . Time . | . . . Total Part Build Rating . | . . . Parts Repaired . | . . . Time . | . . . Parts Recycled . | . . . Recycled Matter . | . . . Retrieved Matter . | . . . Retrieved Components . | . . . Parts Scanalyzed . | . . . Part Schematics Acquired . | . . . Parts Damaged . | . . . Bothacking | -11 -10 -10 ------------ Run | Yrd Mat Sub Used RIF Installer . | . . . Robots Hacked . | . . . Non-combat . | . . . Combat . | . . . Robot Hacks Applied . | . . . Relay Couplers Released . | . . . Fabnet Peak Effective % . | . . . Robots Rewired . | . . . Allies Hacked . | . . . Hacks Repelled . | . . . Allies | -11 -10 -10 -------- Run | Yrd Mat Sub Total Allies . | . . . Largest Group . | . . . Highest-Rated Group . | . . . Highest-Rated Ally . | . . . Total Orders . | . . . Ally Attacks . | . . . Total Damage . | . . . Kills . | . . . Allies Corrupted . | . . . Allies Melted . | . . . Intel | -11 -10 -10 ------- Run | Yrd Mat Sub Robot Analysis Total . | . . . Derelict Logs Recovered 1 | . . 1 Drone Launches . | . . . Drone Recoveries . | . . . Exploration | -11 -10 -10 ------------- Run | Yrd Mat Sub Turns Passed 999 | 92 288 619 Spaces Moved 542 | 51 165 326 Core 4 | 4 . . Treads 500 | 47 165 288 Legs . | . . . Wheels 38 | . . 38 Hover . | . . . Flight . | . . . Fastest Speed 50 | 50 160 107 Average Speed 156 | 151 160 155 Slowest Speed 240 | 160 160 240 Overloaded Moves . | . . . Propulsion Burnouts . | . . . Robots Hopped . | . . . Cave-ins Triggered . | . . . Exploration Rate (%) 14 | 4 22 17 Regions Visited 2 Branch Regions 1 Pre-discovered Areas . | . . . Known Exits Taken . | . . . Unknown Exits Taken 2 | 1 1 . Scrap Searched 1 | . . 1 Spaces Dug . | . . . Terrain Destroyed 88 | . 64 24 Melee . | . . . Projectile . | . . . AOE 88 | . 64 24 Terrain Rammed . | . . . Walls Destroyed . | . . . Machines Disabled . | . . . Actions | -11 -10 -10 --------- Run | Yrd Mat Sub Total 634 | 66 181 387 Wait 8 | . . 8 Move 540 | 50 164 326 Hop . | . . . Pick Up 29 | 10 8 11 Fast Attach . | . . . Attach 11 | 6 1 4 Detach . | . . . Swap 12 | . 3 9 Drop 4 | . 1 3 Fire 30 | . 4 26 Melee . | . . . Ram . | . . . Kick . | . . . Crush . | . . . Escape Stasis . | . . . Rewire . | . . . Trap . | . . . Miscellaneous . | . . . Route ------- -11/Scrapyard -10/Materials (discovered 2 exits: [*Min] / [*Sub]) -10/Subcaves (discovered 1 exit: Mat) History --------- Turn | Location | Event 3 | -11/Scrapyard | Discovered new exit (range 15) 93 | -11/Scrapyard | Entered Materials 302 | -10/Materials | Build established: Mutant 368 | -10/Materials | Discovered new exit (range 6) 368 | -10/Materials | Discovered new exit (range 14) 369 | -10/Materials | Core integrity fell below 50% 381 | -10/Materials | Entered Subcaves 382 | -10/Subcaves | A swath of the cavern ceiling suddenly collapsed 458 | -10/Subcaves | Ambushed by Subdwellers from Twisted Machinery 864 | -10/Subcaves | Identified exit to Materials 898 | -10/Subcaves | Core integrity fell below 20% 979 | -10/Subcaves | Ambushed by Subdwellers from Twisted Machinery 1000 | -10/Subcaves | Destroyed by 6G-TZ5(R) with Subdweller Laser Last Messages --------------- Lgt. Treads destroyed. Critical hit (Destroy). Lgt. Armor Plating destroyed. VY-BUZ(R) destroyed. Switching to secondary target: N1-KG5(R). N1-KG5(R) affixes Scrap Shield Fragment to Scrap Shield. N1-KG5(R) destroyed. Subatomizers dissect the Sub. Optics. Acquired 34 matter. Acquired 36 matter. Acquired Scrap Shield Fragment. Dropped Scrap Shield Fragment. Subatomizers dissect the Sub. Optics. Acquired Sub. Monowheel. Acquired Sub. Power Source. Dropped Lgt. Treads. Acquired Sub. Machine Gun. Subatomizers dissect the Sub. Optics. Acquired Sub. Monowheel. Map ----- +----------------------------------------------------+ | ?????????????????????????????????????????????????? | | ?????????????????????????????????????????????????? | | ?????????????????????????????????????????????????? | | ?????????????????????????????????????? ?????#####? | | ??????????????????????????????????????? #####"""## | | ??????????????????????????????????????? " """ | | ???????????????????????????????????# """ """ | | ???????????????????????????????????? #"""""""" | | ???????????????????????????????????????# """ " | | ???????????????????????????????????????# " # " | | ???????????????????????????????????????## ##### | | ????????????????????????????????????????# #?????# | | ???????????????????????????????????????# ???????## | | ?????????????????????????? ??????????????????????# | | ??????????????????????????"??????????????????????? | | ??????????????????????????"????"?????????????????? | | ????????????????????????##""?? "?????????????????? | | ???????????????????????##""??? "?????????????????? | | ???????????????????????#" "??""??????????????????? | | ??????????????????????##" #?""???????????????????? | | ??????????????????????# ##" ???????????????????? | | ??????????????????????# " " "?##?????????????????? | | ??????????????????????#"" #??# ##???????????????? | | ??????????????????????# R#??# ???????????????? | | ???????????????????#### #?##" ???????????????? | | ??????????????????## @ ##""""#???????????##### | | ??????????????????# " """""""""#???????????# | | ??????????????????# " "" " """ #???????????## | | ??????????????????# " """### #????????????## | | ??????????????????## ##??# ##????????????# | | ???????????????????# #???# ##???????????### | | ??????????????????# #### ##?## ####??????????? | | ??????????????????# #??# ### ## #????????? | | ??????????????????## #??# ##???????? | | ???????????????????###??## ##??????? | | ????????????????????######## #####??? | | ???????????????????## #??# ## #### | | ???????????????????# #### ## | | ???????????????????# ## | | ???????????????????# ### | | ?????????????????# ## ## #??# | | ??###???????##### ### ## ##?## | | ## ####???## ## ## #?## | | & ###?# ## #?# ### | | ### # ###& ### #?## ## | | ?????### & & ## ##?# #?# ## | | ???????## #### =* ####??## #####?# ## | | ????????###??## #?############### ## ### | | ??????????????## !### ## ## # # # ###### | | ???????????????## ! ##????# | +----------------------------------------------------+ Best States ------------- Heat Dissipation 25 Energy Generation 15 Energy Capacity 200 Matter Stores 300 Matter Capacity 300 Sight Range 21 Terrain Scan Density 10 Armor Coverage 150 Evasion (%) 40 Recoil Reduction 2 Item Schematics ----------------- None Robot Schematics ------------------ None Fabricated ------------ Nothing Alien Tech Used ----------------- None Achievements -------------- None Challenges ------------ None Game ------ Seed FocalArmorProjector Manual? 0 Play Time 00:11:41 Cumulative 14.3 hours Start 2024.07.15 @ 19:07:15 End 2024.07.15 @ 19:16:49 Sessions 1 Manual Loads 0 Difficulty Rogue Special Mode None Game No. 42 Rogue 42 Adventurer 0 Explorer 0 Win Type - Total 0 Types 0/0/0/0/0/0/0/0/0 Lore% 21 Gallery% 20 Achievement% 17 Wizard Run 0 Options --------- Layout 1 ASCII 0 Keyboard 0 Movement Arrows Keybinds 0 Fullscreen 1 Font 28/Dina Map View 50x43 Zoom Use 0% Tactical HUD 0 Map Filters NONE Filters NONE Steam X RUN: 71ea6227-579b-49b7-8b7b-14bbaf28a148